[Event "Titled Tuesday Blitz March 22 Late 2022"]
[White "Sanchez Alvares, Kelvin Antonio"]
[Black "Sliwicki, Damian"]
[WhiteFideId "3906680"]
[BlackFideId "1127128"]
[WhiteElo "2193"]
[BlackElo "2067"]
[Result "1-0"]
[Round "10"]
[TimeControl "180+1"]
[Date "2022.03.22"]
[WhiteClock "0:01:26"]
[BlackClock "0:00:02"]

1. e4 {[%clk 0:03:00]}  c5 {[%clk 0:02:43]} 2. Nf3 {[%clk 0:02:59]}  g6 {[%clk 0:02:37]} 3. d4 {[%clk 0:02:56]}  cxd4 {[%clk 0:02:38]} 4. Nxd4 {[%clk 0:02:56]}  Nc6 {[%clk 0:02:37]} 5. c4 {[%clk 0:02:56]}  Nf6 {[%clk 0:02:37]} 6. Nc3 {[%clk 0:02:55]}  Nxd4 {[%clk 0:02:38]} 7. Qxd4 {[%clk 0:02:56]}  d6 {[%clk 0:02:38]} 8. Be3 {[%clk 0:02:55]}  Bg7 {[%clk 0:02:39]} 9. f3 {[%clk 0:02:56]}  O-O {[%clk 0:02:38]} 10. Qd2 {[%clk 0:02:56]}  Be6 {[%clk 0:02:38]} 11. Rc1 {[%clk 0:02:56]}  Qa5 {[%clk 0:02:30]} 12. Nd5 {[%clk 0:02:55]}  Qxd2+ {[%clk 0:02:22]} 13. Kxd2 {[%clk 0:02:56]}  Bxd5 {[%clk 0:02:07]} 14. cxd5 {[%clk 0:02:55]}  Nd7 {[%clk 0:02:07]} 15. Rc7 {[%clk 0:02:51]}  Nc5 {[%clk 0:02:07]} 16. b4 {[%clk 0:02:48]}  Na4 {[%clk 0:01:54]} 17. Bb5 {[%clk 0:02:46]}  Nb2 {[%clk 0:01:26]} 18. Rxb7 {[%clk 0:02:38]}  a6 {[%clk 0:01:22]} 19. Bc6 {[%clk 0:02:33]}  Nc4+ {[%clk 0:01:14]} 20. Ke2 {[%clk 0:02:31]}  Nxe3 {[%clk 0:01:14]} 21. Kxe3 {[%clk 0:02:30]}  Rab8 {[%clk 0:01:09]} 22. Rxb8 {[%clk 0:02:25]}  Rxb8 {[%clk 0:01:10]} 23. Rb1 {[%clk 0:02:24]}  f5 {[%clk 0:00:38]} 24. exf5 {[%clk 0:02:18]}  gxf5 {[%clk 0:00:38]} 25. a4 {[%clk 0:02:18]}  Kf7 {[%clk 0:00:37]} 26. b5 {[%clk 0:02:11]}  e5 {[%clk 0:00:18]} 27. bxa6 {[%clk 0:01:55]}  f4+ {[%clk 0:00:09]} 28. Ke2 {[%clk 0:01:44]}  Rxb1 {[%clk 0:00:10]} 29. a7 {[%clk 0:01:43]}  Rb2+ {[%clk 0:00:09]} 30. Kd1 {[%clk 0:01:40]}  e4 {[%clk 0:00:07]} 31. a8=Q {[%clk 0:01:39]}  Rb1+ {[%clk 0:00:07]} 32. Kc2 {[%clk 0:01:38]}  Rb2+ {[%clk 0:00:08]} 33. Kc1 {[%clk 0:01:38]}  e3 {[%clk 0:00:03]} 34. Qe8+ {[%clk 0:01:35]}  Kf6 {[%clk 0:00:04]} 35. Kxb2 {[%clk 0:01:27]}  Kg5+ {[%clk 0:00:01]} 36. Kc2 {[%clk 0:01:27]}  Be5 {[%clk 0:00:02]} 37. Kd3 {[%clk 0:01:26]} 1-0


[Site "https://www.chess.com"]

[Event "Titled Tuesday Blitz March 22 Late 2022"]
[White "Sanchez, Robert"]
[Black "Avazkhonov, Alikhon"]
[WhiteFideId "2034360"]
[BlackFideId "14208504"]
[WhiteElo "2255"]
[BlackElo "1739"]
[Result "0-1"]
[Round "10"]
[TimeControl "180+1"]
[Date "2022.03.22"]
[WhiteClock "0:02:58"]
[BlackClock "0:02:42"]

1. e4 {[%clk 0:03:00]}  c5 {[%clk 0:02:50]} 2. Nf3 {[%clk 0:03:00]}  d6 {[%clk 0:02:50]} 3. d4 {[%clk 0:03:01]}  cxd4 {[%clk 0:02:50]} 4. Nxd4 {[%clk 0:03:01]}  Nf6 {[%clk 0:02:51]} 5. Nc3 {[%clk 0:03:02]}  a6 {[%clk 0:02:51]} 6. Be3 {[%clk 0:03:01]}  e5 {[%clk 0:02:50]} 7. Nb3 {[%clk 0:03:01]}  Be6 {[%clk 0:02:50]} 8. f3 {[%clk 0:03:02]}  h5 {[%clk 0:02:50]} 9. Qd2 {[%clk 0:03:02]}  Nbd7 {[%clk 0:02:49]} 10. O-O-O {[%clk 0:03:03]}  b5 {[%clk 0:02:49]} 11. Nd5 {[%clk 0:03:03]}  Bxd5 {[%clk 0:02:49]} 12. exd5 {[%clk 0:03:04]}  Nb6 {[%clk 0:02:46]} 13. Bxb6 {[%clk 0:03:02]}  Qxb6 {[%clk 0:02:47]} 14. Na5 {[%clk 0:02:58]}  g6 {[%clk 0:02:45]} 15. Nc6 {[%clk 0:02:58]}  Bh6 {[%clk 0:02:42]} 0-1


[Site "https://www.chess.com"]

[Event "Titled Tuesday Blitz March 22 Late 2022"]
[White "Szpar, Milosz"]
[Black "Vusatiuk, Vladimir"]
[WhiteFideId "1184989"]
[BlackFideId "14118610"]
[WhiteElo "2742"]
[BlackElo "2447"]
[Result "1-0"]
[Round "10"]
[TimeControl "180+1"]
[Date "2022.03.22"]
[WhiteClock "0:02:36"]
[BlackClock "0:00:06"]

1. e4 {[%clk 0:03:00]}  c5 {[%clk 0:02:59]} 2. c3 {[%clk 0:03:00]}  Nf6 {[%clk 0:02:57]} 3. e5 {[%clk 0:03:00]}  Nd5 {[%clk 0:02:56]} 4. Nf3 {[%clk 0:03:00]}  Nc6 {[%clk 0:02:46]} 5. Bc4 {[%clk 0:03:00]}  Nb6 {[%clk 0:02:45]} 6. Bb3 {[%clk 0:03:00]}  d5 {[%clk 0:02:41]} 7. exd6 {[%clk 0:03:00]}  exd6 {[%clk 0:02:41]} 8. O-O {[%clk 0:02:59]}  Be7 {[%clk 0:02:40]} 9. d4 {[%clk 0:03:00]}  O-O {[%clk 0:02:35]} 10. h3 {[%clk 0:03:00]}  Bf5 {[%clk 0:02:32]} 11. Be3 {[%clk 0:03:00]}  c4 {[%clk 0:02:30]} 12. Bc2 {[%clk 0:03:00]}  Bxc2 {[%clk 0:02:30]} 13. Qxc2 {[%clk 0:03:01]}  d5 {[%clk 0:02:26]} 14. Bf4 {[%clk 0:03:00]}  Nd7 {[%clk 0:02:21]} 15. b3 {[%clk 0:02:58]}  b5 {[%clk 0:02:20]} 16. a4 {[%clk 0:02:58]}  a6 {[%clk 0:02:16]} 17. b4 {[%clk 0:02:57]}  Nf6 {[%clk 0:02:10]} 18. Na3 {[%clk 0:02:53]}  Qb6 {[%clk 0:02:03]} 19. Rfe1 {[%clk 0:02:53]}  Ne4 {[%clk 0:02:00]} 20. Nd2 {[%clk 0:02:53]}  Bxb4 {[%clk 0:01:36]} 21. Nxe4 {[%clk 0:02:49]}  Bxa3 {[%clk 0:01:35]} 22. Ng5 {[%clk 0:02:49]}  g6 {[%clk 0:01:28]} 23. Rxa3 {[%clk 0:02:49]}  b4 {[%clk 0:01:28]} 24. Raa1 {[%clk 0:02:45]}  bxc3 {[%clk 0:01:26]} 25. Be3 {[%clk 0:02:43]}  Qb3 {[%clk 0:01:24]} 26. Rec1 {[%clk 0:02:43]}  Rab8 {[%clk 0:00:51]} 27. Qxc3 {[%clk 0:02:42]}  Qxc3 {[%clk 0:00:51]} 28. Rxc3 {[%clk 0:02:43]}  Rb4 {[%clk 0:00:41]} 29. Nf3 {[%clk 0:02:43]}  f6 {[%clk 0:00:40]} 30. Nd2 {[%clk 0:02:36]}  Rfb8 {[%clk 0:00:38]} 31. Kf1 {[%clk 0:02:36]}  Rb2 {[%clk 0:00:35]} 32. Ke1 {[%clk 0:02:36]}  R8b4 {[%clk 0:00:28]} 33. Kd1 {[%clk 0:02:36]}  Na5 {[%clk 0:00:25]} 34. Rc2 {[%clk 0:02:35]}  Kf7 {[%clk 0:00:16]} 35. Kc1 {[%clk 0:02:34]}  Rxc2+ {[%clk 0:00:15]} 36. Kxc2 {[%clk 0:02:35]}  Ke6 {[%clk 0:00:13]} 37. Kc3 {[%clk 0:02:33]}  Rb7 {[%clk 0:00:11]} 38. Rb1 {[%clk 0:02:34]}  Rxb1 {[%clk 0:00:10]} 39. Nxb1 {[%clk 0:02:35]}  Kf5 {[%clk 0:00:09]} 40. Kb4 {[%clk 0:02:35]}  Nb3 {[%clk 0:00:08]} 41. Nc3 {[%clk 0:02:36]}  Nc1 {[%clk 0:00:07]} 42. Nxd5 {[%clk 0:02:35]}  Ke4 {[%clk 0:00:07]} 43. Kxc4 {[%clk 0:02:36]}  Nd3 {[%clk 0:00:06]} 44. Nxf6+ {[%clk 0:02:36]} 1-0


[Site "https://www.chess.com"]

[Event "Titled Tuesday Blitz March 22 Late 2022"]
[White "Terletsky, Oleg"]
[Black "Van den Dikkenberg, Erik"]
[WhiteFideId "14116774"]
[BlackFideId "1005880"]
[WhiteElo "2064"]
[BlackElo "2118"]
[Result "1-0"]
[Round "10"]
[TimeControl "180+1"]
[Date "2022.03.22"]
[WhiteClock "0:00:08"]
[BlackClock "0:00:05"]

1. e4 {[%clk 0:03:00]}  c5 {[%clk 0:02:59]} 2. Nf3 {[%clk 0:03:01]}  d6 {[%clk 0:02:59]} 3. d4 {[%clk 0:03:01]}  cxd4 {[%clk 0:02:58]} 4. Nxd4 {[%clk 0:03:02]}  Nf6 {[%clk 0:02:58]} 5. Nc3 {[%clk 0:03:01]}  a6 {[%clk 0:02:59]} 6. Bc4 {[%clk 0:03:00]}  e6 {[%clk 0:02:59]} 7. O-O {[%clk 0:03:00]}  Be7 {[%clk 0:02:59]} 8. Qf3 {[%clk 0:02:59]}  O-O {[%clk 0:02:58]} 9. Qg3 {[%clk 0:02:59]}  Nc6 {[%clk 0:02:56]} 10. Be3 {[%clk 0:02:57]}  Ne5 {[%clk 0:02:50]} 11. Be2 {[%clk 0:02:56]}  Bd7 {[%clk 0:02:46]} 12. f4 {[%clk 0:02:55]}  Nc6 {[%clk 0:02:40]} 13. e5 {[%clk 0:02:51]}  Nd5 {[%clk 0:02:19]} 14. Nxd5 {[%clk 0:02:45]}  exd5 {[%clk 0:02:19]} 15. Bd3 {[%clk 0:02:41]}  Bh4 {[%clk 0:02:05]} 16. Qf3 {[%clk 0:02:23]}  dxe5 {[%clk 0:01:59]} 17. Nxc6 {[%clk 0:02:12]}  Bxc6 {[%clk 0:01:59]} 18. fxe5 {[%clk 0:02:08]}  d4 {[%clk 0:01:55]} 19. Bxh7+ {[%clk 0:01:30]}  Kxh7 {[%clk 0:01:51]} 20. Qh5+ {[%clk 0:01:29]}  Kg8 {[%clk 0:01:50]} 21. Rad1 {[%clk 0:01:05]}  Qd5 {[%clk 0:01:30]} 22. Rd2 {[%clk 0:01:03]}  Be7 {[%clk 0:01:01]} 23. Bxd4 {[%clk 0:01:00]}  Bc5 {[%clk 0:00:55]} 24. c3 {[%clk 0:00:52]}  Bxd4+ {[%clk 0:00:49]} 25. cxd4 {[%clk 0:00:53]}  f6 {[%clk 0:00:41]} 26. Rf3 {[%clk 0:00:29]}  Qc4 {[%clk 0:00:20]} 27. Rh3 {[%clk 0:00:19]}  Qc1+ {[%clk 0:00:17]} 28. Rd1 {[%clk 0:00:19]}  Qh6 {[%clk 0:00:09]} 29. Qg4 {[%clk 0:00:15]}  Qg5 {[%clk 0:00:08]} 30. Qe6+ {[%clk 0:00:14]}  Rf7 {[%clk 0:00:09]} 31. Rg3 {[%clk 0:00:13]}  Qf4 {[%clk 0:00:07]} 32. d5 {[%clk 0:00:11]}  Re8 {[%clk 0:00:04]} 33. Qd6 {[%clk 0:00:08]}  Bb5 {[%clk 0:00:04]} 34. e6 {[%clk 0:00:08]}  Rfe7 {[%clk 0:00:05]} 35. Qxf4 {[%clk 0:00:08]} 1-0


[Site "https://www.chess.com"]

[Event "Titled Tuesday Blitz March 22 Late 2022"]
[White "Thavandiran, Shiyam"]
[Black "Villegas, Pierre"]
[WhiteFideId "2605058"]
[BlackFideId "654183"]
[WhiteElo "2357"]
[BlackElo "2395"]
[Result "1-0"]
[Round "10"]
[TimeControl "180+1"]
[Date "2022.03.22"]
[WhiteClock "0:00:04"]
[BlackClock "0:00:09"]

1. e4 {[%clk 0:02:58]}  c6 {[%clk 0:02:58]} 2. d4 {[%clk 0:02:58]}  d5 {[%clk 0:02:59]} 3. Nd2 {[%clk 0:02:59]}  dxe4 {[%clk 0:02:58]} 4. Nxe4 {[%clk 0:03:00]}  Bf5 {[%clk 0:02:54]} 5. Ng3 {[%clk 0:02:58]}  Bg6 {[%clk 0:02:55]} 6. c3 {[%clk 0:02:58]}  Nf6 {[%clk 0:02:52]} 7. Nh3 {[%clk 0:02:57]}  e6 {[%clk 0:02:44]} 8. Nf4 {[%clk 0:02:56]}  Bd6 {[%clk 0:02:40]} 9. Bc4 {[%clk 0:02:53]}  Qc7 {[%clk 0:02:33]} 10. Qf3 {[%clk 0:02:51]}  O-O {[%clk 0:02:27]} 11. Nxg6 {[%clk 0:02:48]}  hxg6 {[%clk 0:02:26]} 12. Bg5 {[%clk 0:02:39]}  Nbd7 {[%clk 0:02:19]} 13. h4 {[%clk 0:02:39]}  c5 {[%clk 0:01:23]} 14. dxc5 {[%clk 0:02:23]}  Qxc5 {[%clk 0:01:19]} 15. Bb3 {[%clk 0:02:19]}  a5 {[%clk 0:01:01]} 16. Bc2 {[%clk 0:01:51]}  a4 {[%clk 0:00:56]} 17. a3 {[%clk 0:01:51]}  Qe5+ {[%clk 0:00:44]} 18. Ne2 {[%clk 0:01:49]}  Nb6 {[%clk 0:00:30]} 19. Bd3 {[%clk 0:01:30]}  Rac8 {[%clk 0:00:26]} 20. Bf4 {[%clk 0:01:23]}  Qc5 {[%clk 0:00:25]} 21. Be3 {[%clk 0:01:22]}  Qc7 {[%clk 0:00:24]} 22. Nd4 {[%clk 0:01:00]}  Nc4 {[%clk 0:00:18]} 23. Nb5 {[%clk 0:00:45]}  Qe7 {[%clk 0:00:17]} 24. Nxd6 {[%clk 0:00:20]}  Qxd6 {[%clk 0:00:18]} 25. Bxc4 {[%clk 0:00:19]}  Rxc4 {[%clk 0:00:19]} 26. Qxb7 {[%clk 0:00:18]}  Rb8 {[%clk 0:00:17]} 27. Qf3 {[%clk 0:00:11]}  Rxb2 {[%clk 0:00:15]} 28. Rd1 {[%clk 0:00:11]}  Qe5 {[%clk 0:00:14]} 29. h5 {[%clk 0:00:10]}  gxh5 {[%clk 0:00:11]} 30. Kf1 {[%clk 0:00:04]}  Qxc3 {[%clk 0:00:08]} 31. Rd8+ {[%clk 0:00:04]}  Kh7 {[%clk 0:00:08]} 32. Rxh5+ {[%clk 0:00:04]}  Kg6 {[%clk 0:00:08]} 33. Rg5+ {[%clk 0:00:04]}  Kh7 {[%clk 0:00:09]} 34. Qh3+ {[%clk 0:00:04]} 1-0


[Site "https://www.chess.com"]

[Event "Titled Tuesday Blitz March 22 Late 2022"]
[White "Vovk, Orest"]
[Black "Ladan, Nicholas"]
[WhiteFideId "14113490"]
[BlackFideId "30918855"]
[WhiteElo "2203"]
[BlackElo "2167"]
[Result "0-1"]
[Round "10"]
[TimeControl "180+1"]
[Date "2022.03.22"]
[WhiteClock "0:00:27"]
[BlackClock "0:00:13"]

1. h4 {[%clk 0:02:57]}  h5 {[%clk 0:02:58]} 2. Nf3 {[%clk 0:02:48]}  Nf6 {[%clk 0:02:57]} 3. Ng5 {[%clk 0:02:48]}  d5 {[%clk 0:02:54]} 4. e4 {[%clk 0:02:48]}  dxe4 {[%clk 0:02:54]} 5. Nc3 {[%clk 0:02:48]}  Bg4 {[%clk 0:02:45]} 6. Be2 {[%clk 0:02:47]}  e6 {[%clk 0:02:40]} 7. Bxg4 {[%clk 0:02:46]}  Nxg4 {[%clk 0:02:40]} 8. Ncxe4 {[%clk 0:02:45]}  Nc6 {[%clk 0:02:33]} 9. c3 {[%clk 0:02:41]}  Qd3 {[%clk 0:02:06]} 10. Qe2 {[%clk 0:02:33]}  Nce5 {[%clk 0:02:01]} 11. Qxd3 {[%clk 0:02:23]}  Nxd3+ {[%clk 0:02:01]} 12. Ke2 {[%clk 0:02:21]}  Nf4+ {[%clk 0:01:45]} 13. Kf3 {[%clk 0:02:20]}  e5 {[%clk 0:01:37]} 14. d4 {[%clk 0:02:17]}  Ng6 {[%clk 0:01:32]} 15. d5 {[%clk 0:02:14]}  f5 {[%clk 0:01:30]} 16. Ng3 {[%clk 0:02:12]}  e4+ {[%clk 0:01:27]} 17. Ke2 {[%clk 0:02:11]}  Ne7 {[%clk 0:01:26]} 18. c4 {[%clk 0:02:09]}  c6 {[%clk 0:01:14]} 19. d6 {[%clk 0:02:08]}  Nc8 {[%clk 0:01:05]} 20. c5 {[%clk 0:01:55]}  g6 {[%clk 0:01:05]} 21. Ne6 {[%clk 0:01:52]}  Kd7 {[%clk 0:00:57]} 22. Nc7 {[%clk 0:01:50]}  Rb8 {[%clk 0:00:56]} 23. f3 {[%clk 0:01:50]}  Nf6 {[%clk 0:00:48]} 24. fxe4 {[%clk 0:01:50]}  Nxd6 {[%clk 0:00:49]} 25. cxd6 {[%clk 0:01:44]}  Bxd6 {[%clk 0:00:50]} 26. exf5 {[%clk 0:01:38]}  Bxg3 {[%clk 0:00:48]} 27. Ne6 {[%clk 0:01:38]}  gxf5 {[%clk 0:00:48]} 28. Kf3 {[%clk 0:01:37]}  Kxe6 {[%clk 0:00:44]} 29. Kxg3 {[%clk 0:01:37]}  Ne4+ {[%clk 0:00:44]} 30. Kf3 {[%clk 0:01:36]}  Rhg8 {[%clk 0:00:43]} 31. Bf4 {[%clk 0:01:36]}  Rbd8 {[%clk 0:00:43]} 32. Rhd1 {[%clk 0:01:36]}  c5 {[%clk 0:00:30]} 33. Rac1 {[%clk 0:01:11]}  b6 {[%clk 0:00:29]} 34. g3 {[%clk 0:01:11]}  Rge8 {[%clk 0:00:26]} 35. Rxd8 {[%clk 0:01:05]}  Rxd8 {[%clk 0:00:25]} 36. Ke2 {[%clk 0:01:05]}  Rd4 {[%clk 0:00:23]} 37. a3 {[%clk 0:01:03]}  a5 {[%clk 0:00:23]} 38. Be3 {[%clk 0:01:00]}  Rd5 {[%clk 0:00:22]} 39. Bf4 {[%clk 0:01:00]}  a4 {[%clk 0:00:22]} 40. Rc4 {[%clk 0:00:56]}  b5 {[%clk 0:00:22]} 41. Rc1 {[%clk 0:00:56]}  c4 {[%clk 0:00:22]} 42. Rc2 {[%clk 0:00:54]}  Rd3 {[%clk 0:00:22]} 43. Rc1 {[%clk 0:00:49]}  Kd5 {[%clk 0:00:21]} 44. Rg1 {[%clk 0:00:48]}  Rb3 {[%clk 0:00:20]} 45. Rd1+ {[%clk 0:00:46]}  Ke6 {[%clk 0:00:20]} 46. Rd8 {[%clk 0:00:44]}  Rxb2+ {[%clk 0:00:20]} 47. Ke3 {[%clk 0:00:44]}  Rb3+ {[%clk 0:00:20]} 48. Ke2 {[%clk 0:00:43]}  Nxg3+ {[%clk 0:00:18]} 49. Kf2 {[%clk 0:00:42]}  Ne4+ {[%clk 0:00:18]} 50. Ke2 {[%clk 0:00:42]}  Rxa3 {[%clk 0:00:17]} 51. Re8+ {[%clk 0:00:42]}  Kf7 {[%clk 0:00:16]} 52. Re5 {[%clk 0:00:41]}  b4 {[%clk 0:00:14]} 53. Rxf5+ {[%clk 0:00:41]}  Kg6 {[%clk 0:00:14]} 54. Re5 {[%clk 0:00:36]}  Nc3+ {[%clk 0:00:14]} 55. Kd2 {[%clk 0:00:36]}  Ra2+ {[%clk 0:00:15]} 56. Kc1 {[%clk 0:00:28]}  b3 {[%clk 0:00:14]} 57. Rg5+ {[%clk 0:00:27]}  Kf7 {[%clk 0:00:13]} 0-1


[Site "https://www.chess.com"]

[Event "Titled Tuesday Blitz March 22 Late 2022"]
[White "Weetik, Vjacheslav"]
[Black "Altman, Joshua"]
[WhiteFideId "4153472"]
[BlackFideId "426210"]
[WhiteElo "2469"]
[BlackElo "1945"]
[Result "0-1"]
[Round "10"]
[TimeControl "180+1"]
[Date "2022.03.22"]
[WhiteClock "0:00:03"]
[BlackClock "0:01:01"]

1. d4 {[%clk 0:02:55]}  Nf6 {[%clk 0:03:00]} 2. Bf4 {[%clk 0:02:55]}  e6 {[%clk 0:03:00]} 3. e3 {[%clk 0:02:53]}  b6 {[%clk 0:03:00]} 4. Nf3 {[%clk 0:02:53]}  Bb7 {[%clk 0:03:01]} 5. h3 {[%clk 0:02:51]}  Be7 {[%clk 0:03:01]} 6. Be2 {[%clk 0:02:47]}  O-O {[%clk 0:03:01]} 7. O-O {[%clk 0:02:46]}  c5 {[%clk 0:03:01]} 8. a4 {[%clk 0:02:45]}  cxd4 {[%clk 0:03:01]} 9. exd4 {[%clk 0:02:41]}  a6 {[%clk 0:02:58]} 10. Re1 {[%clk 0:02:39]}  d6 {[%clk 0:02:58]} 11. c3 {[%clk 0:02:35]}  Nbd7 {[%clk 0:02:57]} 12. Na3 {[%clk 0:02:35]}  h6 {[%clk 0:02:55]} 13. Bh2 {[%clk 0:02:34]}  Re8 {[%clk 0:02:55]} 14. Nc4 {[%clk 0:02:31]}  Qc7 {[%clk 0:02:55]} 15. Ne3 {[%clk 0:02:26]}  Bf8 {[%clk 0:02:54]} 16. Rc1 {[%clk 0:02:23]}  Rac8 {[%clk 0:02:53]} 17. Bd3 {[%clk 0:02:22]}  Qb8 {[%clk 0:02:51]} 18. Qe2 {[%clk 0:02:18]}  Qa8 {[%clk 0:02:48]} 19. Nc4 {[%clk 0:02:14]}  e5 {[%clk 0:02:36]} 20. dxe5 {[%clk 0:01:51]}  dxe5 {[%clk 0:02:35]} 21. Ncxe5 {[%clk 0:01:39]}  Nxe5 {[%clk 0:02:26]} 22. Nxe5 {[%clk 0:01:36]}  Bxg2 {[%clk 0:02:21]} 23. Bxa6 {[%clk 0:01:31]}  Bxh3 {[%clk 0:02:06]} 24. Qf3 {[%clk 0:01:19]}  Rxe5 {[%clk 0:01:56]} 25. Qxh3 {[%clk 0:00:19]}  Rxe1+ {[%clk 0:01:55]} 26. Rxe1 {[%clk 0:00:20]}  Qxa6 {[%clk 0:01:55]} 27. Be5 {[%clk 0:00:19]}  Rc6 {[%clk 0:01:49]} 28. Bd4 {[%clk 0:00:18]}  Qxa4 {[%clk 0:01:42]} 29. Qg2 {[%clk 0:00:18]}  Qc4 {[%clk 0:01:34]} 30. Re3 {[%clk 0:00:16]}  Re6 {[%clk 0:01:32]} 31. Rg3 {[%clk 0:00:15]}  Qd5 {[%clk 0:01:13]} 32. f3 {[%clk 0:00:08]}  Qf5 {[%clk 0:01:07]} 33. Kh2 {[%clk 0:00:03]}  Qd3 {[%clk 0:01:01]} 0-1


[Site "https://www.chess.com"]

[Event "Titled Tuesday Blitz March 22 Late 2022"]
[White "Zhou, Qiyu"]
[Black "Winkels, Marcel"]
[WhiteFideId "505161"]
[BlackFideId "1003887"]
[WhiteElo "1925"]
[BlackElo "1900"]
[Result "1-0"]
[Round "10"]
[TimeControl "180+1"]
[Date "2022.03.22"]
[WhiteClock "0:00:10"]
[BlackClock "0:00:12"]

1. e4 {[%clk 0:03:00]}  c5 {[%clk 0:02:58]} 2. Nf3 {[%clk 0:03:00]}  d6 {[%clk 0:02:57]} 3. d4 {[%clk 0:03:00]}  cxd4 {[%clk 0:02:58]} 4. Nxd4 {[%clk 0:03:01]}  Nf6 {[%clk 0:02:58]} 5. Nc3 {[%clk 0:03:01]}  a6 {[%clk 0:02:58]} 6. Be3 {[%clk 0:03:01]}  e5 {[%clk 0:02:57]} 7. Nb3 {[%clk 0:03:02]}  Be6 {[%clk 0:02:57]} 8. h3 {[%clk 0:03:02]}  Be7 {[%clk 0:02:53]} 9. Qf3 {[%clk 0:02:56]}  b5 {[%clk 0:02:40]} 10. O-O-O {[%clk 0:02:52]}  b4 {[%clk 0:02:28]} 11. Nd5 {[%clk 0:02:50]}  Bxd5 {[%clk 0:02:24]} 12. exd5 {[%clk 0:02:50]}  Nbd7 {[%clk 0:02:24]} 13. g4 {[%clk 0:02:49]}  Nb6 {[%clk 0:02:23]} 14. g5 {[%clk 0:02:46]}  Nfd7 {[%clk 0:02:19]} 15. Na5 {[%clk 0:02:41]}  Bxg5 {[%clk 0:01:57]} 16. Nc6 {[%clk 0:02:38]}  Qf6 {[%clk 0:01:55]} 17. Qg4 {[%clk 0:02:22]}  Bxe3+ {[%clk 0:01:42]} 18. fxe3 {[%clk 0:02:23]}  Na4 {[%clk 0:01:35]} 19. Qxb4 {[%clk 0:02:12]}  Nac5 {[%clk 0:01:27]} 20. Bd3 {[%clk 0:01:54]}  O-O {[%clk 0:01:25]} 21. Rdf1 {[%clk 0:01:43]}  Qh6 {[%clk 0:01:25]} 22. Ne7+ {[%clk 0:01:34]}  Kh8 {[%clk 0:01:23]} 23. Nf5 {[%clk 0:01:33]}  Qf6 {[%clk 0:01:15]} 24. Rhg1 {[%clk 0:01:21]}  Nxd3+ {[%clk 0:01:07]} 25. cxd3 {[%clk 0:01:22]}  Nc5 {[%clk 0:01:05]} 26. Kb1 {[%clk 0:00:42]}  Nxd3 {[%clk 0:00:43]} 27. Qxd6 {[%clk 0:00:39]}  Qxd6 {[%clk 0:00:40]} 28. Nxd6 {[%clk 0:00:39]}  f6 {[%clk 0:00:34]} 29. e4 {[%clk 0:00:29]}  Rfb8 {[%clk 0:00:32]} 30. b3 {[%clk 0:00:28]}  a5 {[%clk 0:00:32]} 31. Nf7+ {[%clk 0:00:18]}  Kg8 {[%clk 0:00:30]} 32. Nh6+ {[%clk 0:00:19]}  Kh8 {[%clk 0:00:30]} 33. Nf5 {[%clk 0:00:20]}  Ra7 {[%clk 0:00:26]} 34. Rd1 {[%clk 0:00:18]}  Nc5 {[%clk 0:00:24]} 35. Rge1 {[%clk 0:00:04]}  a4 {[%clk 0:00:22]} 36. b4 {[%clk 0:00:03]}  Rxb4+ {[%clk 0:00:21]} 37. Ka1 {[%clk 0:00:04]}  Rb8 {[%clk 0:00:21]} 38. d6 {[%clk 0:00:02]}  Nd7 {[%clk 0:00:19]} 39. Ne7 {[%clk 0:00:02]}  Rab7 {[%clk 0:00:17]} 40. Nc6 {[%clk 0:00:01]}  Rc8 {[%clk 0:00:16]} 41. Ne7 {[%clk 0:00:01]}  Rc2 {[%clk 0:00:15]} 42. Rc1 {[%clk 0:00:01]}  Rbb2 {[%clk 0:00:15]} 43. Rxc2 {[%clk 0:00:01]}  Rxc2 {[%clk 0:00:15]} 44. Rb1 {[%clk 0:00:02]}  h5 {[%clk 0:00:12]} 45. Rb2 {[%clk 0:00:02]}  Rxb2 {[%clk 0:00:11]} 46. Kxb2 {[%clk 0:00:02]}  Kh7 {[%clk 0:00:11]} 47. Ka3 {[%clk 0:00:02]}  g5 {[%clk 0:00:11]} 48. Kxa4 {[%clk 0:00:03]}  g4 {[%clk 0:00:12]} 49. hxg4 {[%clk 0:00:04]}  h4 {[%clk 0:00:11]} 50. Nf5 {[%clk 0:00:05]}  h3 {[%clk 0:00:11]} 51. Ng3 {[%clk 0:00:05]}  h2 {[%clk 0:00:12]} 52. Kb4 {[%clk 0:00:05]}  Kg6 {[%clk 0:00:12]} 53. Kb5 {[%clk 0:00:05]}  Kg5 {[%clk 0:00:12]} 54. Kc6 {[%clk 0:00:05]}  Kxg4 {[%clk 0:00:13]} 55. Nh1 {[%clk 0:00:05]}  Nf8 {[%clk 0:00:12]} 56. d7 {[%clk 0:00:05]}  Nxd7 {[%clk 0:00:11]} 57. Kxd7 {[%clk 0:00:06]}  f5 {[%clk 0:00:11]} 58. a4 {[%clk 0:00:07]}  f4 {[%clk 0:00:11]} 59. a5 {[%clk 0:00:08]}  f3 {[%clk 0:00:11]} 60. a6 {[%clk 0:00:09]}  Kh3 {[%clk 0:00:09]} 61. a7 {[%clk 0:00:08]}  Kg2 {[%clk 0:00:09]} 62. a8=Q {[%clk 0:00:09]}  f2 {[%clk 0:00:10]} 63. Nxf2 {[%clk 0:00:06]}  Kxf2 {[%clk 0:00:09]} 64. Qa2+ {[%clk 0:00:05]}  Kg1 {[%clk 0:00:09]} 65. Qxh2+ {[%clk 0:00:05]}  Kxh2 {[%clk 0:00:09]} 66. Kd6 {[%clk 0:00:06]}  Kg3 {[%clk 0:00:09]} 67. Kxe5 {[%clk 0:00:07]}  Kg4 {[%clk 0:00:10]} 68. Kf6 {[%clk 0:00:07]}  Kf4 {[%clk 0:00:10]} 69. e5 {[%clk 0:00:08]}  Ke4 {[%clk 0:00:10]} 70. e6 {[%clk 0:00:08]}  Kd5 {[%clk 0:00:11]} 71. e7 {[%clk 0:00:09]}  Kd6 {[%clk 0:00:12]} 72. e8=Q {[%clk 0:00:10]} 1-0


[Site "https://www.chess.com"]

[Event "Titled Tuesday Blitz March 22 Late 2022"]
[White "Zhurbinsky, David"]
[Black "Petesch, Gabriel"]
[WhiteFideId "2072904"]
[BlackFideId "2032465"]
[WhiteElo "2563"]
[BlackElo "2374"]
[Result "0-1"]
[Round "10"]
[TimeControl "180+1"]
[Date "2022.03.22"]
[WhiteClock "0:00:01"]
[BlackClock "0:00:24"]

1. e4 {[%clk 0:02:59]}  Nf6 {[%clk 0:02:53]} 2. e5 {[%clk 0:03:00]}  Nd5 {[%clk 0:02:51]} 3. Nf3 {[%clk 0:03:00]}  d6 {[%clk 0:02:47]} 4. c4 {[%clk 0:02:59]}  Nb6 {[%clk 0:02:47]} 5. d4 {[%clk 0:02:59]}  Nc6 {[%clk 0:02:43]} 6. Bf4 {[%clk 0:02:55]}  g6 {[%clk 0:02:40]} 7. d5 {[%clk 0:02:50]}  Nb4 {[%clk 0:02:33]} 8. a3 {[%clk 0:02:35]}  Na6 {[%clk 0:02:31]} 9. Nc3 {[%clk 0:02:26]}  Bg7 {[%clk 0:02:30]} 10. Bd3 {[%clk 0:02:23]}  Bg4 {[%clk 0:02:27]} 11. Qe2 {[%clk 0:02:04]}  Nc5 {[%clk 0:02:20]} 12. Bc2 {[%clk 0:02:02]}  Bxf3 {[%clk 0:02:04]} 13. gxf3 {[%clk 0:02:02]}  O-O {[%clk 0:01:59]} 14. b3 {[%clk 0:01:29]}  Ncd7 {[%clk 0:01:49]} 15. O-O-O {[%clk 0:01:20]}  Nxe5 {[%clk 0:01:34]} 16. Ne4 {[%clk 0:01:07]}  a5 {[%clk 0:01:23]} 17. a4 {[%clk 0:01:05]}  Nbd7 {[%clk 0:01:17]} 18. h4 {[%clk 0:01:01]}  c6 {[%clk 0:00:52]} 19. h5 {[%clk 0:00:54]}  cxd5 {[%clk 0:00:40]} 20. Rxd5 {[%clk 0:00:48]}  Qc7 {[%clk 0:00:34]} 21. Ng5 {[%clk 0:00:37]}  Nf6 {[%clk 0:00:33]} 22. Rd2 {[%clk 0:00:20]}  Qc5 {[%clk 0:00:32]} 23. hxg6 {[%clk 0:00:17]}  Qa3+ {[%clk 0:00:32]} 24. Kb1 {[%clk 0:00:14]}  hxg6 {[%clk 0:00:29]} 25. Bxe5 {[%clk 0:00:13]}  dxe5 {[%clk 0:00:28]} 26. Qd3 {[%clk 0:00:04]}  e4 {[%clk 0:00:26]} 27. fxe4 {[%clk 0:00:03]}  Nxe4 {[%clk 0:00:25]} 28. Qd4 {[%clk 0:00:01]}  Nxd2+ {[%clk 0:00:24]} 29. Qxd2 {[%clk 0:00:01]}  Qb2# {[%clk 0:00:24]} 0-1


[Site "https://www.chess.com"]